[Event "*** Titled Tuesday Blitz"]
[Site "Chess.com"]
[Date "2019.05.07"]
[Round "1"]
[White "wannabe2700"]
[Black "Misha_Bilous"]
[Result "1-0"]
[WhiteElo "2606"]
[BlackElo "2285"]
[TimeControl "180+2"]
[EndTime "13:10:42 PDT"]
[Termination "wannabe2700 won on time"]

1. e4 {[%clk 0:03:01.4]} 1... c5 {[%clk 0:03:00.4]} 2. Nf3 {[%clk 0:03:01.7]}
2... d6 {[%clk 0:02:59.9]} 3. d4 {[%clk 0:03:03]} 3... cxd4 {[%clk 0:03:01.2]}
4. Nxd4 {[%clk 0:03:04.9]} 4... Nf6 {[%clk 0:03:02.4]} 5. Nc3 {[%clk 0:03:06.1]}
5... a6 {[%clk 0:03:03.7]} 6. Be3 {[%clk 0:03:07.1]} 6... e5 {[%clk 0:03:04.5]}
7. Nb3 {[%clk 0:03:08.3]} 7... Be6 {[%clk 0:03:05.8]} 8. f3 {[%clk 0:03:09.2]}
8... Nbd7 {[%clk 0:03:06.9]} 9. g4 {[%clk 0:03:10]} 9... Be7 {[%clk 0:02:59.8]}
10. Qd2 {[%clk 0:03:07.2]} 10... b5 {[%clk 0:02:59]} 11. g5 {[%clk 0:03:06.8]}
11... Nh5 {[%clk 0:02:59.7]} 12. Nd5 {[%clk 0:02:52.9]} 12... Bxd5 {[%clk
0:02:51.6]} 13. exd5 {[%clk 0:02:54.8]} 13... O-O {[%clk 0:02:44.4]} 14. Na5
{[%clk 0:02:54.7]} 14... Nf4 {[%clk 0:02:24]} 15. Nc6 {[%clk 0:02:49.6]} 15...
Qe8 {[%clk 0:02:22.8]} 16. h4 {[%clk 0:02:48.9]} 16... Nb8 {[%clk 0:02:18.7]}
17. Nxe7+ {[%clk 0:02:42.4]} 17... Qxe7 {[%clk 0:02:19.2]} 18. O-O-O {[%clk
0:02:44.2]} 18... f6 {[%clk 0:02:00.8]} 19. Bxf4 {[%clk 0:02:43.9]} 19... exf4
{[%clk 0:02:02]} 20. Qxf4 {[%clk 0:02:23.6]} 20... fxg5 {[%clk 0:02:02.4]} 21.
Qxg5 {[%clk 0:02:24.7]} 21... Qxg5+ {[%clk 0:01:45.7]} 22. hxg5 {[%clk
0:02:26.6]} 22... Nd7 {[%clk 0:01:46.4]} 23. Bd3 {[%clk 0:02:11.3]} 23... g6
{[%clk 0:01:45.2]} 24. Rh3 {[%clk 0:02:04.3]} 24... Ne5 {[%clk 0:01:40.8]} 25.
Be4 {[%clk 0:02:05]} 25... Rf7 {[%clk 0:01:35.4]} 26. b3 {[%clk 0:01:56.2]}
26... Raf8 {[%clk 0:01:33.6]} 27. Rf1 {[%clk 0:01:49.1]} 27... Rf4 {[%clk
0:01:27.4]} 28. Re1 {[%clk 0:00:51]} 28... b4 {[%clk 0:00:46.2]} 29. Re3 {[%clk
0:00:47.1]} 29... a5 {[%clk 0:00:30.6]} 30. c4 {[%clk 0:00:42.7]} 30... Kg7
{[%clk 0:00:16]} 31. Kd2 {[%clk 0:00:42.9]} 31... R8f7 {[%clk 0:00:13.1]} 32.
Ke2 {[%clk 0:00:40.3]} 32... Nd7 {[%clk 0:00:13.4]} 33. Bc2 {[%clk 0:00:34.7]}
33... Nc5 {[%clk 0:00:14.1]} 34. Re8 {[%clk 0:00:34.5]} 34... Rf8 {[%clk
0:00:13.2]} 35. Rxf8 {[%clk 0:00:28]} 35... Rxf8 {[%clk 0:00:14.7]} 36. Ke3
{[%clk 0:00:29.6]} 36... Re8+ {[%clk 0:00:15.3]} 37. Be4 {[%clk 0:00:30.8]}
37... Re5 {[%clk 0:00:10.6]} 38. Kf4 {[%clk 0:00:28.3]} 38... Re7 {[%clk
0:00:08.8]} 39. Rh1 {[%clk 0:00:25.2]} 39... Rf7+ {[%clk 0:00:08.1]} 40. Ke3
{[%clk 0:00:25.8]} 40... a4 {[%clk 0:00:09.5]} 41. bxa4 {[%clk 0:00:23.9]} 41...
Ra7 {[%clk 0:00:11.1]} 42. Bc2 {[%clk 0:00:23.8]} 42... Nxa4 {[%clk 0:00:10.9]}
43. Rb1 {[%clk 0:00:24.1]} 43... Nc5 {[%clk 0:00:04.5]} 44. Rxb4 {[%clk
0:00:22.6]} 44... Rxa2 {[%clk 0:00:06]} 45. Be4 {[%clk 0:00:21.8]} 45... h6
{[%clk 0:00:03.1]} 46. gxh6+ {[%clk 0:00:20.3]} 46... Kxh6 {[%clk 0:00:04.4]}
47. Rb6 {[%clk 0:00:22.2]} 47... Ra3+ {[%clk 0:00:04.3]} 48. Kd2 {[%clk
0:00:20.1]} 48... Nb3+ {[%clk 0:00:03.4]} 49. Ke2 {[%clk 0:00:18.7]} 49... Nd4+
{[%clk 0:00:03.8]} 50. Kf2 {[%clk 0:00:19.9]} 50... Ra2+ {[%clk 0:00:03.3]} 51.
Ke3 {[%clk 0:00:19.4]} 51... Nc2+ {[%clk 0:00:03.6]} 52. Bxc2 {[%clk 0:00:20.4]}
52... Rxc2 {[%clk 0:00:05.2]} 53. Kd3 {[%clk 0:00:21.9]} 53... Rf2 {[%clk
0:00:06.2]} 54. Ke3 {[%clk 0:00:22.8]} 54... Rc2 {[%clk 0:00:07.2]} 55. Kd4
{[%clk 0:00:24.1]} 55... Rf2 {[%clk 0:00:07.2]} 56. Rxd6 {[%clk 0:00:24.8]}
56... Rxf3 {[%clk 0:00:08.8]} 57. c5 {[%clk 0:00:26.1]} 57... Rf1 {[%clk
0:00:09.1]} 58. c6 {[%clk 0:00:27.1]} 58... Rc1 {[%clk 0:00:10.6]} 59. Rd7
{[%clk 0:00:20]} 59... g5 {[%clk 0:00:12.1]} 60. c7 {[%clk 0:00:21.3]} 60... g4
{[%clk 0:00:13.7]} 61. d6 {[%clk 0:00:19.7]} 61... g3 {[%clk 0:00:14.6]} 62. Rd8
{[%clk 0:00:21.1]} 62... g2 {[%clk 0:00:15.5]} 63. Rg8 {[%clk 0:00:21.7]} 63...
Rd1+ {[%clk 0:00:08.9]} 64. Ke5 {[%clk 0:00:22.3]} 64... Re1+ {[%clk 0:00:09.3]}
65. Kd5 {[%clk 0:00:23.6]} 65... Rd1+ {[%clk 0:00:07.7]} 66. Ke6 {[%clk
0:00:24.6]} 66... Re1+ {[%clk 0:00:06.9]} 67. Kd7 {[%clk 0:00:25.6]} 1-0

[Event "*** Titled Tuesday Blitz"]
[Site "Chess.com"]
[Date "2019.05.07"]
[Round "1"]
[White "Frolik67"]
[Black "fidezivkovic"]
[Result "1-0"]
[WhiteElo "2602"]
[BlackElo "2283"]
[TimeControl "180+2"]
[EndTime "13:11:05 PDT"]
[Termination "Frolik67 won on time"]

1. e4 {[%clk 0:03:01.9]} 1... c5 {[%clk 0:02:53.5]} 2. d4 {[%clk 0:03:01.9]}
2... cxd4 {[%clk 0:02:53.1]} 3. c3 {[%clk 0:03:02.9]} 3... g6 {[%clk 0:02:51.1]}
4. Nf3 {[%clk 0:03:03.4]} 4... Bg7 {[%clk 0:02:49]} 5. Bc4 {[%clk 0:03:04.8]}
5... dxc3 {[%clk 0:02:45.2]} 6. Nxc3 {[%clk 0:03:06.7]} 6... Nc6 {[%clk
0:02:44.9]} 7. O-O {[%clk 0:03:07.5]} 7... Nf6 {[%clk 0:02:41.9]} 8. Qe2 {[%clk
0:03:08.1]} 8... O-O {[%clk 0:02:37.9]} 9. Rd1 {[%clk 0:03:09.3]} 9... Qa5
{[%clk 0:02:19.4]} 10. h3 {[%clk 0:03:02]} 10... d6 {[%clk 0:02:18.4]} 11. Bf4
{[%clk 0:02:54.8]} 11... a6 {[%clk 0:01:58.4]} 12. Rac1 {[%clk 0:02:52.7]} 12...
b5 {[%clk 0:01:48.3]} 13. Bb3 {[%clk 0:02:52.4]} 13... Bb7 {[%clk 0:01:48]} 14.
Nd5 {[%clk 0:02:45.7]} 14... Rfe8 {[%clk 0:01:14.2]} 15. Ng5 {[%clk 0:02:26.5]}
15... Nxd5 {[%clk 0:01:08.4]} 16. Bxd5 {[%clk 0:02:23.8]} 16... Nd8 {[%clk
0:01:02]} 17. Bd2 {[%clk 0:01:40.6]} 17... Qb6 {[%clk 0:00:51.9]} 18. Be3 {[%clk
0:01:35.3]} 18... Qa5 {[%clk 0:00:52.1]} 19. a3 {[%clk 0:00:59.8]} 19... Bxd5
{[%clk 0:00:49.3]} 20. exd5 {[%clk 0:01:01.7]} 20... h6 {[%clk 0:00:47.4]} 21.
Ne4 {[%clk 0:01:01.8]} 21... Nb7 {[%clk 0:00:43.7]} 22. Rc2 {[%clk 0:00:52.1]}
22... Rac8 {[%clk 0:00:42.3]} 23. Rdc1 {[%clk 0:00:53.6]} 23... Rxc2 {[%clk
0:00:41]} 24. Rxc2 {[%clk 0:00:54.4]} 24... Qa4 {[%clk 0:00:40.9]} 25. Qd3
{[%clk 0:00:51.6]} 25... Na5 {[%clk 0:00:33.8]} 26. Rc7 {[%clk 0:00:50.6]} 26...
Qb3 {[%clk 0:00:29.1]} 27. Qxb3 {[%clk 0:00:47.8]} 27... Nxb3 {[%clk 0:00:29.4]}
28. Ra7 {[%clk 0:00:49.1]} 28... Bxb2 {[%clk 0:00:28.7]} 29. Rxa6 {[%clk
0:00:50.3]} 29... Nd4 {[%clk 0:00:27.3]} 30. Bxh6 {[%clk 0:00:48.8]} 30... Nc2
{[%clk 0:00:24.6]} 31. a4 {[%clk 0:00:47.6]} 31... b4 {[%clk 0:00:24]} 32. Bd2
{[%clk 0:00:48.6]} 32... Bd4 {[%clk 0:00:21.2]} 33. Kf1 {[%clk 0:00:48.2]} 33...
b3 {[%clk 0:00:21.5]} 34. Bc3 {[%clk 0:00:45.7]} 34... b2 {[%clk 0:00:21.8]} 35.
Bxb2 {[%clk 0:00:43.5]} 35... Bxb2 {[%clk 0:00:22.3]} 36. Rc6 {[%clk 0:00:45]}
36... Nd4 {[%clk 0:00:21.4]} 37. Rb6 {[%clk 0:00:45.6]} 37... Ba3 {[%clk
0:00:21.3]} 38. a5 {[%clk 0:00:46.4]} 38... Ra8 {[%clk 0:00:21.3]} 39. a6 {[%clk
0:00:46.6]} 39... Bc5 {[%clk 0:00:20.9]} 40. Nxc5 {[%clk 0:00:47.1]} 40... dxc5
{[%clk 0:00:21.4]} 41. Ke1 {[%clk 0:00:48.5]} 41... c4 {[%clk 0:00:21]} 42. Kd2
{[%clk 0:00:49]} 42... Nf5 {[%clk 0:00:21.3]} 43. Kc3 {[%clk 0:00:47.7]} 43...
Nd6 {[%clk 0:00:21.5]} 44. Kd4 {[%clk 0:00:48.8]} 44... Kf8 {[%clk 0:00:21.7]}
45. h4 {[%clk 0:00:48.4]} 45... Ke8 {[%clk 0:00:21.8]} 46. g4 {[%clk 0:00:49.4]}
46... Kd7 {[%clk 0:00:21.3]} 47. h5 {[%clk 0:00:50.6]} 47... gxh5 {[%clk
0:00:21.6]} 48. gxh5 {[%clk 0:00:52.5]} 48... Kc7 {[%clk 0:00:20.7]} 49. Rc6+
{[%clk 0:00:54]} 49... Kd7 {[%clk 0:00:21.3]} 50. Kc5 {[%clk 0:00:53.7]} 50...
Rh8 {[%clk 0:00:16.4]} 51. a7 {[%clk 0:00:54.2]} 51... Ra8 {[%clk 0:00:15.9]}
52. Ra6 {[%clk 0:00:48.7]} 52... Kc7 {[%clk 0:00:16.3]} 53. h6 {[%clk
0:00:48.8]} 53... Ne4+ {[%clk 0:00:13]} 54. Kxc4 {[%clk 0:00:47.5]} 54... Nf6
{[%clk 0:00:13.1]} 55. Ra1 {[%clk 0:00:32.5]} 55... Kb7 {[%clk 0:00:12.7]} 56.
Re1 {[%clk 0:00:33.4]} 56... Re8 {[%clk 0:00:09.7]} 57. d6 {[%clk 0:00:28.9]}
57... e6 {[%clk 0:00:09.1]} 58. Rb1+ {[%clk 0:00:22.1]} 58... Kxa7 {[%clk
0:00:09.2]} 59. Kd4 {[%clk 0:00:20.9]} 59... Nd7 {[%clk 0:00:08.4]} 60. Rc1
{[%clk 0:00:19.1]} 60... Kb6 {[%clk 0:00:08.3]} 61. Rc7 {[%clk 0:00:20.4]} 61...
Rh8 {[%clk 0:00:07.5]} 62. Rxd7 {[%clk 0:00:20.7]} 62... Rxh6 {[%clk 0:00:08.1]}
63. Rxf7 {[%clk 0:00:21.9]} 63... Kc6 {[%clk 0:00:08.4]} 64. Ke5 {[%clk
0:00:23]} 64... Rg6 {[%clk 0:00:06.1]} 65. f4 {[%clk 0:00:23.1]} 65... Rg1
{[%clk 0:00:05.3]} 66. Rc7+ {[%clk 0:00:24]} 66... Kb6 {[%clk 0:00:05.1]} 67.
Kxe6 {[%clk 0:00:25.6]} 67... Re1+ {[%clk 0:00:05.2]} 68. Kf6 {[%clk 0:00:26.9]}
68... Rd1 {[%clk 0:00:05.2]} 69. Ke7 {[%clk 0:00:27.5]} 69... Re1+ {[%clk
0:00:05]} 70. Kd7 {[%clk 0:00:27.8]} 70... Rf1 {[%clk 0:00:04.9]} 71. Rc4 {[%clk
0:00:29.3]} 71... Kb5 {[%clk 0:00:04.7]} 72. Rc2 {[%clk 0:00:29.3]} 72... Rxf4
{[%clk 0:00:04]} 73. Kc7 {[%clk 0:00:30.8]} 1-0

[Event "*** Titled Tuesday Blitz"]
[Site "Chess.com"]
[Date "2019.05.07"]
[Round "1"]
[White "SoltaniciR"]
[Black "kinga2008"]
[Result "0-1"]
[WhiteElo "2492"]
[BlackElo "1930"]
[TimeControl "180+2"]
[EndTime "13:11:28 PDT"]
[Termination "kinga2008 won by resignation"]

1. e4 {[%clk 0:03:00.3]} 1... c5 {[%clk 0:03:00.4]} 2. Nf3 {[%clk 0:03:00.6]}
2... Nc6 {[%clk 0:03:01.3]} 3. Bb5 {[%clk 0:03:00.1]} 3... d6 {[%clk 0:03:01.8]}
4. O-O {[%clk 0:02:59.5]} 4... Nf6 {[%clk 0:03:01.9]} 5. Re1 {[%clk 0:02:59.6]}
5... g6 {[%clk 0:02:59.9]} 6. c3 {[%clk 0:02:55.8]} 6... Bg7 {[%clk 0:02:58]} 7.
d4 {[%clk 0:02:56.5]} 7... cxd4 {[%clk 0:02:58.1]} 8. cxd4 {[%clk 0:02:57.2]}
8... O-O {[%clk 0:02:58.4]} 9. h3 {[%clk 0:02:57.5]} 9... Bd7 {[%clk 0:02:56.2]}
10. Nc3 {[%clk 0:02:57.9]} 10... a6 {[%clk 0:02:54.5]} 11. Bf1 {[%clk
0:02:55.4]} 11... b5 {[%clk 0:02:52.9]} 12. Bg5 {[%clk 0:02:36.7]} 12... Ne8
{[%clk 0:02:35.8]} 13. Qd2 {[%clk 0:02:30.3]} 13... Nc7 {[%clk 0:02:08]} 14.
Rac1 {[%clk 0:02:23.6]} 14... Rc8 {[%clk 0:02:02.5]} 15. Nd5 {[%clk 0:02:21]}
15... f6 {[%clk 0:01:47.4]} 16. Bf4 {[%clk 0:02:16]} 16... Nxd5 {[%clk
0:01:37.3]} 17. exd5 {[%clk 0:02:14]} 17... Na7 {[%clk 0:01:33.9]} 18. Rc3
{[%clk 0:01:38.7]} 18... Rxc3 {[%clk 0:01:15.3]} 19. Qxc3 {[%clk 0:01:38.9]}
19... Nc8 {[%clk 0:01:06.7]} 20. Nd2 {[%clk 0:01:22.5]} 20... Nb6 {[%clk
0:00:55]} 21. Qb3 {[%clk 0:01:20.9]} 21... Re8 {[%clk 0:00:31.8]} 22. Be2 {[%clk
0:01:14.9]} 22... f5 {[%clk 0:00:26.7]} 23. Nf3 {[%clk 0:01:14.8]} 23... Qa8
{[%clk 0:00:25.7]} 24. Ng5 {[%clk 0:00:31.5]} 24... Qxd5 {[%clk 0:00:17.2]} 25.
Bf3 {[%clk 0:00:27.6]} 25... Qxb3 {[%clk 0:00:13.3]} 26. axb3 {[%clk 0:00:29.5]}
26... Bxd4 {[%clk 0:00:07]} 27. Ne6 {[%clk 0:00:30.6]} 27... Bxe6 {[%clk
0:00:07.7]} 28. Rxe6 {[%clk 0:00:32.5]} 28... Kf7 {[%clk 0:00:06.8]} 29. Re2
{[%clk 0:00:33]} 29... e5 {[%clk 0:00:06.8]} 30. Be3 {[%clk 0:00:32.8]} 30...
Bxe3 {[%clk 0:00:04.7]} 31. Rxe3 {[%clk 0:00:34.2]} 31... e4 {[%clk 0:00:06]}
32. Be2 {[%clk 0:00:34.5]} 32... Nd5 {[%clk 0:00:06.9]} 33. Rg3 {[%clk
0:00:34.6]} 33... Nf4 {[%clk 0:00:05.7]} 34. Bf1 {[%clk 0:00:35.1]} 34... d5
{[%clk 0:00:06.4]} 35. Rc3 {[%clk 0:00:35.7]} 35... d4 {[%clk 0:00:03.4]} 36.
Rc6 {[%clk 0:00:35.8]} 36... Re6 {[%clk 0:00:03.6]} 37. Rc7+ {[%clk 0:00:36.3]}
37... Re7 {[%clk 0:00:05]} 38. Rc8 {[%clk 0:00:36.8]} 38... d3 {[%clk
0:00:05.8]} 39. Rd8 {[%clk 0:00:37]} 39... Ke6 {[%clk 0:00:06.4]} 40. g3 {[%clk
0:00:37.9]} 40... Ne2+ {[%clk 0:00:05.8]} 41. Kg2 {[%clk 0:00:38]} 41... Rd7
{[%clk 0:00:06.9]} 42. Ra8 {[%clk 0:00:38.1]} 42... Nd4 {[%clk 0:00:04]} 43.
Rxa6+ {[%clk 0:00:39]} 43... Rd6 {[%clk 0:00:05.5]} 44. f3 {[%clk 0:00:32.4]}
44... d2 {[%clk 0:00:05.6]} 45. Ra1 {[%clk 0:00:32.3]} 45... Nxb3 {[%clk
0:00:06.2]} 46. Rd1 {[%clk 0:00:30.8]} 46... e3 {[%clk 0:00:07.5]} 47. Bxb5
{[%clk 0:00:29.9]} 47... Nd4 {[%clk 0:00:07.1]} 48. Kf1 {[%clk 0:00:30.1]} 48...
Nxb5 {[%clk 0:00:07.5]} 49. Ke2 {[%clk 0:00:31.7]} 49... Nd4+ {[%clk 0:00:03.9]}
50. Kxe3 {[%clk 0:00:32.8]} 50... Nb3 {[%clk 0:00:04.7]} 51. f4 {[%clk 0:00:32]}
51... Rd5 {[%clk 0:00:03.8]} 52. Ke2 {[%clk 0:00:32.1]} 52... Nd4+ {[%clk
0:00:04.2]} 53. Ke3 {[%clk 0:00:33.4]} 53... Nc2+ {[%clk 0:00:04.9]} 54. Ke2
{[%clk 0:00:33.8]} 54... Nd4+ {[%clk 0:00:06.1]} 55. Ke3 {[%clk 0:00:35.4]}
55... Nb3 {[%clk 0:00:07.2]} 56. Ke2 {[%clk 0:00:35.2]} 56... Kd6 {[%clk
0:00:07.2]} 57. Rf1 {[%clk 0:00:31.8]} 57... Nc1+ {[%clk 0:00:07.6]} 58. Kd1
{[%clk 0:00:32.7]} 58... Nb3 {[%clk 0:00:06.5]} 59. Rf3 {[%clk 0:00:33.4]} 59...
Nc5 {[%clk 0:00:07.5]} 60. g4 {[%clk 0:00:23.9]} 60... Ne4 {[%clk 0:00:06.2]}
61. Rf1 {[%clk 0:00:18.4]} 61... Ra5 {[%clk 0:00:05.9]} 62. Kc2 {[%clk
0:00:17.6]} 62... Ng3 {[%clk 0:00:04.9]} 63. Rd1 {[%clk 0:00:17.8]} 63... Ne4
{[%clk 0:00:05.8]} 64. gxf5 {[%clk 0:00:14.2]} 64... gxf5 {[%clk 0:00:04.4]} 65.
h4 {[%clk 0:00:13.4]} 65... Rc5+ {[%clk 0:00:04.9]} 66. Kb1 {[%clk 0:00:14.6]}
66... Ke6 {[%clk 0:00:04.1]} 67. Rf1 {[%clk 0:00:13.8]} 67... Ng3 {[%clk
0:00:03.8]} 68. Rd1 {[%clk 0:00:14.6]} 68... Ne4 {[%clk 0:00:04.6]} 69. Rf1
{[%clk 0:00:15]} 69... Kd5 {[%clk 0:00:04.8]} 70. Rd1 {[%clk 0:00:14.8]} 70...
Kd4 {[%clk 0:00:06.2]} 71. b4 {[%clk 0:00:15.4]} 71... Rc4 {[%clk 0:00:06.2]}
72. Kb2 {[%clk 0:00:16]} 72... Ke3 {[%clk 0:00:06.8]} 73. Kb3 {[%clk 0:00:16.4]}
73... Rc1 {[%clk 0:00:07.5]} 74. Rxd2 {[%clk 0:00:16.5]} 74... Nxd2+ {[%clk
0:00:07.9]} 75. Kb2 {[%clk 0:00:17.8]} 75... Rc4 {[%clk 0:00:07.2]} 76. Ka3
{[%clk 0:00:18.3]} 76... Rxf4 {[%clk 0:00:07.6]} 77. b5 {[%clk 0:00:19.4]} 77...
Nc4+ {[%clk 0:00:07.4]} 78. Kb4 {[%clk 0:00:20.7]} 78... Nd6+ {[%clk 0:00:08.5]}
79. Kc5 {[%clk 0:00:21.8]} 79... Nxb5 {[%clk 0:00:09.5]} 0-1

[Event "*** Titled Tuesday Blitz"]
[Site "Chess.com"]
[Date "2019.05.07"]
[Round "1"]
[White "Gentlejimmy7"]
[Black "PE-TRO"]
[Result "1/2-1/2"]
[WhiteElo "2444"]
[BlackElo "2797"]
[TimeControl "180+2"]
[EndTime "13:11:46 PDT"]
[Termination "Game drawn by repetition"]

1. d4 {[%clk 0:03:01.3]} 1... d5 {[%clk 0:03:01.2]} 2. Nf3 {[%clk 0:03:01.6]}
2... Nf6 {[%clk 0:03:02.2]} 3. c4 {[%clk 0:03:02.2]} 3... c6 {[%clk 0:03:03.1]}
4. Nbd2 {[%clk 0:03:01.5]} 4... g6 {[%clk 0:03:04.1]} 5. g3 {[%clk 0:03:01.5]}
5... Bg7 {[%clk 0:03:04.6]} 6. Bg2 {[%clk 0:03:03.1]} 6... O-O {[%clk 0:03:06]}
7. O-O {[%clk 0:03:04.7]} 7... Be6 {[%clk 0:03:06.6]} 8. b3 {[%clk 0:03:06.1]}
8... Ne4 {[%clk 0:03:06.9]} 9. Bb2 {[%clk 0:03:07.3]} 9... Nxd2 {[%clk
0:03:04.2]} 10. Nxd2 {[%clk 0:03:07.2]} 10... Nd7 {[%clk 0:03:05.8]} 11. Qc2
{[%clk 0:03:06.5]} 11... Nf6 {[%clk 0:03:02.4]} 12. e4 {[%clk 0:03:04.6]} 12...
dxe4 {[%clk 0:03:02.9]} 13. Nxe4 {[%clk 0:03:06.5]} 13... Bf5 {[%clk 0:03:03.9]}
14. Rfe1 {[%clk 0:03:05.4]} 14... Nxe4 {[%clk 0:03:02.9]} 15. Bxe4 {[%clk
0:03:06.3]} 15... Bxe4 {[%clk 0:03:04.2]} 16. Qxe4 {[%clk 0:03:06.7]} 16... e6
{[%clk 0:03:05.3]} 17. Rad1 {[%clk 0:03:06.3]} 17... Qa5 {[%clk 0:03:05.4]} 18.
a3 {[%clk 0:03:04.9]} 18... Rfd8 {[%clk 0:03:06.4]} 19. b4 {[%clk 0:03:05.3]}
19... Qf5 {[%clk 0:03:07]} 20. Qxf5 {[%clk 0:03:05.9]} 20... gxf5 {[%clk
0:03:08.9]} 21. Bc3 {[%clk 0:02:51.6]} 21... b5 {[%clk 0:03:08]} 22. c5 {[%clk
0:02:40]} 22... Rd7 {[%clk 0:03:08.7]} 23. Rd3 {[%clk 0:02:30.6]} 23... Bf6
{[%clk 0:03:08.8]} 24. f4 {[%clk 0:02:28.7]} 24... a5 {[%clk 0:03:06.2]} 25.
bxa5 {[%clk 0:02:26.5]} 25... Bd8 {[%clk 0:03:07.1]} 26. a4 {[%clk 0:02:12]}
26... Bxa5 {[%clk 0:02:16.7]} 27. axb5 {[%clk 0:01:23.3]} 27... Bxc3 {[%clk
0:02:16.6]} 28. Rxc3 {[%clk 0:01:25.2]} 28... cxb5 {[%clk 0:02:16.3]} 29. Rb1
{[%clk 0:01:26.4]} 29... Rxd4 {[%clk 0:02:14.2]} 30. Rxb5 {[%clk 0:01:26.8]}
30... Ra1+ {[%clk 0:02:11.5]} 31. Kf2 {[%clk 0:01:24.4]} 31... Rd8 {[%clk
0:01:08.4]} 32. c6 {[%clk 0:01:20.3]} 32... Rc8 {[%clk 0:01:08.8]} 33. c7 {[%clk
0:01:19.5]} 33... Raa8 {[%clk 0:01:09.5]} 34. Rb7 {[%clk 0:01:17.3]} 34... Kf8
{[%clk 0:01:10.2]} 35. Kg2 {[%clk 0:00:39.4]} 35... Ke7 {[%clk 0:01:05.6]} 36.
Kh3 {[%clk 0:00:40.5]} 36... Ra2 {[%clk 0:00:58.2]} 37. Rb8 {[%clk 0:00:35.8]}
37... Kd7 {[%clk 0:00:59.1]} 38. Rxc8 {[%clk 0:00:35.9]} 38... Kxc8 {[%clk
0:01:00]} 39. Rc1 {[%clk 0:00:36.2]} 39... h6 {[%clk 0:00:37.3]} 40. Rc6 {[%clk
0:00:34.2]} 40... Rb2 {[%clk 0:00:29.1]} 41. Rc3 {[%clk 0:00:33]} 41... f6
{[%clk 0:00:27.4]} 42. Rc6 {[%clk 0:00:32.9]} 42... Re2 {[%clk 0:00:28.3]} 43.
Rc5 {[%clk 0:00:28.7]} 43... e5 {[%clk 0:00:28.4]} 44. Rc6 {[%clk 0:00:28.4]}
44... exf4 {[%clk 0:00:24.4]} 45. gxf4 {[%clk 0:00:28.6]} 45... Re4 {[%clk
0:00:25.3]} 46. Kg3 {[%clk 0:00:29.3]} 46... Re3+ {[%clk 0:00:26.4]} 47. Kh4
{[%clk 0:00:29.8]} 47... Rf3 {[%clk 0:00:27.4]} 48. Rc4 {[%clk 0:00:25]} 48...
Rf2 {[%clk 0:00:28.1]} 49. Kg3 {[%clk 0:00:21.4]} 49... Rf1 {[%clk 0:00:28.6]}
50. h3 {[%clk 0:00:22.6]} 50... Rg1+ {[%clk 0:00:26]} 51. Kf2 {[%clk 0:00:23.2]}
51... Rg7 {[%clk 0:00:23.1]} 52. Rc6 {[%clk 0:00:20.6]} 52... Rxc7 {[%clk
0:00:21.5]} 53. Rxf6 {[%clk 0:00:22.2]} 53... Rc5 {[%clk 0:00:22.7]} 54. Rxh6
{[%clk 0:00:23.1]} 54... Kd7 {[%clk 0:00:23.9]} 55. Rh8 {[%clk 0:00:22.4]} 55...
Ke6 {[%clk 0:00:24.6]} 56. Rf8 {[%clk 0:00:21.6]} 56... Rc2+ {[%clk 0:00:24.4]}
57. Kg3 {[%clk 0:00:22.8]} 57... Rc3+ {[%clk 0:00:22.2]} 58. Kh4 {[%clk
0:00:24]} 58... Rf3 {[%clk 0:00:23.1]} 59. Kg5 {[%clk 0:00:24.2]} 59... Rg3+
{[%clk 0:00:24.2]} 60. Kh4 {[%clk 0:00:25.4]} 60... Rf3 {[%clk 0:00:24.8]} 61.
Kg5 {[%clk 0:00:21.8]} 61... Rg3+ {[%clk 0:00:25.8]} 62. Kh4 {[%clk 0:00:22.4]}
62... Rg2 {[%clk 0:00:26.6]} 63. Re8+ {[%clk 0:00:21.5]} 63... Kf6 {[%clk
0:00:27.5]} 64. Rf8+ {[%clk 0:00:22.2]} 64... Ke6 {[%clk 0:00:28.6]} 65. Re8+
{[%clk 0:00:22.6]} 65... Kf7 {[%clk 0:00:29.8]} 66. Re5 {[%clk 0:00:18.5]} 66...
Kf6 {[%clk 0:00:30.9]} 67. Re8 {[%clk 0:00:19.6]} 67... Kf7 {[%clk 0:00:30]} 68.
Re5 {[%clk 0:00:20.3]} 68... Kf6 {[%clk 0:00:31.4]} 69. Ra5 {[%clk 0:00:21.2]}
69... Rg1 {[%clk 0:00:26.6]} 70. Ra6+ {[%clk 0:00:22.5]} 70... Kf7 {[%clk
0:00:27.6]} 71. Kh5 {[%clk 0:00:23.9]} 71... Rg3 {[%clk 0:00:27.5]} 72. h4
{[%clk 0:00:24.6]} 72... Rg4 {[%clk 0:00:28.3]} 73. Ra7+ {[%clk 0:00:25.1]}
73... Kf6 {[%clk 0:00:29.6]} 74. Ra6+ {[%clk 0:00:25.9]} 74... Kf7 {[%clk
0:00:30.2]} 75. Ra7+ {[%clk 0:00:27.2]} 75... Kf6 {[%clk 0:00:31.4]} 76. Ra6+
{[%clk 0:00:28.4]} 76... Kf7 {[%clk 0:00:32.5]} 77. Ra4 {[%clk 0:00:28.9]} 77...
Kf6 {[%clk 0:00:33.2]} 78. Rb4 {[%clk 0:00:30]} 78... Kf7 {[%clk 0:00:33.8]} 79.
Rb7+ {[%clk 0:00:28.8]} 79... Kf6 {[%clk 0:00:34.9]} 80. Rb6+ {[%clk 0:00:29.9]}
80... Kf7 {[%clk 0:00:36.1]} 81. Rb7+ {[%clk 0:00:30]} 81... Ke6 {[%clk
0:00:34.9]} 82. Rb4 {[%clk 0:00:27.7]} 82... Kf6 {[%clk 0:00:33]} 83. Ra4 {[%clk
0:00:27.6]} 83... Kf7 {[%clk 0:00:33.8]} 84. Ra5 {[%clk 0:00:24.3]} 84... Kf6
{[%clk 0:00:33.1]} 85. Ra6+ {[%clk 0:00:23.7]} 85... Kf7 {[%clk 0:00:34]} 86.
Ra4 {[%clk 0:00:24.3]} 86... Kf6 {[%clk 0:00:34.8]} 87. Ra6+ {[%clk 0:00:21.5]}
87... Kf7 {[%clk 0:00:34.7]} 1/2-1/2